fUSD/lending_fUSD_20260305
["ID","MTS","AMOUNT","RATE_DAILY","PERIOD"]
[407739067,1772725848224,-1613.445,0.00036768,2]
[407739068,1772725848233,-350.0,0.00036768,5]
[407739069,1772725848243,-350.0,0.00036768,5]
[407739070,1772725848252,-166.25,0.000368,14]
[407739071,1772725848261,-279.9073084,0.0003681,120]
[407739072,1772725848270,-500.0,0.0003681,120]
[407739073,1772725848279,-500.0,0.0003681,120]
[407739074,1772725848288,-775.8,0.0003681,120]
[407739075,1772725848297,-775.8,0.0003682,120]
[407739076,1772725848306,-775.8,0.0003682,120]
[407739077,1772725848315,-1000.0,0.00036828,14]
[407739078,1772725848323,-672.77,0.00036843,10]
[407739079,1772725848332,-1000.0,0.00036858,2]
[407739080,1772725848341,-1000.0,0.00036858,2]
[407739081,1772725848353,-1000.0,0.00036858,2]
[407739082,1772725848363,-1000.0,0.00036858,2]
[407739083,1772725848371,-1000.0,0.00036858,2]
[407739084,1772725848380,-212.39682348,0.00036873,4]
[407739085,1772725848390,-500.0,0.00036873,5]
[407739086,1772725848399,-2651.5445,0.00036888,7]
[407739087,1772725848408,-795.46336,0.00036888,30]
[407739088,1772725848419,-1000.0,0.0003689,2]
[407739089,1772725848429,-1000.0,0.0003689,2]
[407739090,1772725848438,-1000.0,0.0003689,2]
[407739091,1772725848446,-1000.0,0.0003689,2]
[407739092,1772725848455,-1000.0,0.0003689,2]
[407739093,1772725848464,-213.0,0.0003689,30]
[407739094,1772725848473,-151.0,0.0003689,7]
[407739095,1772725848482,-172.256445,0.0003689,7]
[407739096,1772725848491,-178.877545,0.0003689,7]
[407739097,1772725848499,-151.0,0.0003689,7]
[407739098,1772725848508,-151.0,0.00036899,7]
[407739099,1772725848517,-14211.55442587,0.0003691,2]
[407739100,1772725848526,-217.225635,0.0003691,7]
[407739101,1772725848535,-161.0,0.00037,2]
[407739102,1772725848544,-160.0,0.00037,3]
[407739103,1772725848553,-172.70211477,0.00037,3]
[407739104,1772725848562,-350.0,0.00037068,5]
[407739105,1772725848571,-795.46336,0.00037088,30]
[407739106,1772725848580,-36163.0,0.000371,20]
[407739107,1772725848589,-1000.0,0.00037102,14]
[407739108,1772725848598,-1022.12,0.0003712,120]
[407739109,1772725848608,-166.25,0.000372,14]
[407739110,1772725848617,-465.79,0.000372,14]
[407739111,1772725848626,-459.59439681,0.000372,120]
[407739112,1772725848635,-390.0,0.00037248,2]
[407739113,1772725848644,-668.65,0.0003726,120]
[407739114,1772725848653,-795.46336,0.00037288,30]
[407739115,1772725848663,-450.0,0.00037316,5]
[407739116,1772725848672,-450.0,0.00037316,5]
[407739117,1772725848681,-1500.0,0.00037328,15]
[407739118,1772725848690,-1500.0,0.00037328,15]
[407739119,1772725848699,-2098.457839,0.00037328,15]
[407739120,1772725848708,-1021.10227,0.000374,120]
[407739121,1772725848717,-795.46336,0.00037488,30]
[407739122,1772725848726,-450.0,0.00037616,5]
[407739123,1772725848735,-795.46336,0.00037688,30]
[407739124,1772725848744,-2435.0,0.00037753,5]
[407739125,1772725848753,-1150.55203457,0.00037753,120]
[407739126,1772725848763,-2032.16,0.000378,120]
[407739127,1772725848771,-166.25,0.000378,14]
[407739128,1772725848780,-152.0,0.00037823,3]
[407739129,1772725848789,-550.0,0.00037864,5]
[407739130,1772725848798,-550.0,0.00037864,5]
[407739131,1772725848807,-795.46336,0.00037888,30]
[407739132,1772725848816,-578.66915446,0.000379,120]
[407739133,1772725848825,-12000.0,0.000379,13]
[407739134,1772725848834,-157.35029208,0.000379,2]
[407739135,1772725848843,-500.0,0.00037946,120]
[407739136,1772725848852,-500.0,0.00037946,120]
[407739137,1772725848862,-851.43039111,0.00037999,120]
[407739138,1772725848871,-526.0,0.00038,5]
[407739139,1772725848880,-400.0,0.00038,120]
[407739140,1772725848890,-1000.0,0.00038,120]
[407739141,1772725848899,-415.94855261,0.00038,8]
[407739142,1772725848908,-200.0,0.00038,120]
[407739143,1772725848919,-121772.79158663,0.00038,14]
[407739144,1772725848928,-2979.94208591,0.00038,14]
[407739145,1772725848948,-465.79,0.00038,14]
[407739146,1772725848958,-160.0,0.00038,120]
[407739147,1772725848969,-160.0,0.00038,3]
[407739148,1772725848980,-465.79,0.00038,14]
[407739149,1772725848990,-160.0,0.00038,30]
[407739150,1772725849001,-151.0,0.00038,7]
[407739151,1772725849010,-151.0,0.00038,7]
[407739152,1772725849020,-205.227148,0.00038,7]
[407739153,1772725849030,-795.46336,0.00038088,30]
[407739154,1772725849039,-1296.51960255,0.000381,33]
[407739155,1772725849049,-36163.0,0.0003815,20]
[407739156,1772725849059,-198.383807,0.0003815,7]
[407739157,1772725849068,-550.0,0.00038164,5]
[407739158,1772725849078,-180.24131651,0.00038173,19]
[407739159,1772725849088,-409.83,0.000382,30]
[407739160,1772725849097,-1000.0,0.00038242,5]
[407739161,1772725849108,-150.0,0.00038252,2]
[407739162,1772725849117,-180.58,0.00038257,14]
[407739163,1772725849126,-795.46336,0.00038288,30]
[407739164,1772725849135,-287.67814035,0.000383,30]
[407739165,1772725849146,-152.0,0.00038351,4]
[407739166,1772725849156,-151.0,0.00038356,120]
[407739167,1772725849166,-151.0,0.00038356,120]
[407739168,1772725849177,-151.0,0.00038356,120]
[407739169,1772725849188,-151.0,0.00038356,120]
[407739170,1772725849198,-500.0,0.00038356,5]
[407739171,1772725849208,-280.0,0.0003838,5]
[407739172,1772725849217,-1022.12,0.000384,120]
[407739173,1772725849227,-650.0,0.00038412,5]
[407739174,1772725849236,-650.0,0.00038412,5]
[407739175,1772725849245,-270.06,0.00038426,2]
[407739176,1772725849254,-795.46336,0.00038488,30]
[407739177,1772725849264,-5000.0,0.000385,90]
[407739178,1772725849274,-465.79,0.000385,14]
[407739179,1772725849283,-1856.77932256,0.00038659,2]
[407739180,1772725849292,-795.46336,0.00038688,30]
[407739181,1772725849302,-2827.18660901,0.0003869,2]
[407739182,1772725849311,-650.0,0.00038712,5]
[407739183,1772725849320,-1000.0,0.000388,120]
[407739184,1772725849330,-3442.66232329,0.00038834,2]
[407739185,1772725935384,150.0,0.00012,2]
[407739186,1772726011112,1504.439354,0.00016291,2]
[407739190,1772726394330,15788.37542174,9.95e-05,2]
[407739194,1772726457732,250.0,0.00015,2]
[407739201,1772726534130,473.74632675,0.0001,2]
[407739202,1772726545292,778.71953615,0.0001,2]
[407739203,1772726554608,2029.29711317,0.0001,2]
[407739204,1772726626918,599.3,0.0001629,10]
[407739222,1772727031955,-447.26367459,0.00018,2]
[407739223,1772727031965,-234.418,0.00019178,2]
[407739224,1772727031974,-1299.376,0.000196,2]
[407739225,1772727031983,-162.60429585,0.000196,2]
[407739226,1772727031992,-225.5603018,0.00019899,2]
[407739227,1772727032003,-626.10704283,0.00019899,2]
[407739228,1772727032015,-303.33265537,0.00019899,2]
[407739229,1772727032024,-95.57807876,0.000199,7]
[407739230,1772727032035,-1543.57054066,0.000199,7]
[407739231,1772727032047,-793.29285291,0.000199,7]
[407739232,1772727032058,-367.55852767,0.000199,7]
[407739233,1772727032067,-101.61989211,0.000199,2]
[407739234,1772727032078,-1013.06293228,0.000199,2]
[407739235,1772727032096,-298.91048015,0.000199,2]
[407739236,1772727032106,-251.0,0.00019998,2]
[407739238,1772727032116,-500.0,0.00019999,2]
[407739240,1772727032125,-500.0,0.00019999,2]
[407739242,1772727032135,-500.0,0.00019999,2]
[407739244,1772727032144,-199.96824716,0.00019999,2]
[407739293,1772727037910,-300.03175284,0.00019999,2]
[407739294,1772727037919,-500.0,0.00019999,2]
[407739295,1772727037928,-449.96824716,0.00019999,2]
[407739296,1772727037940,-50.03175284,0.00019999,2]
[407739297,1772727037950,-500.0,0.00019999,2]
[407739298,1772727037959,-393.92692214,0.00019999,2]
[407739299,1772727037971,-106.07307786,0.00019999,2]
[407739300,1772727037980,-322.12892214,0.00019999,2]
[407739301,1772727037992,-177.87107786,0.00019999,2]
[407739302,1772727038002,-130.64642164,0.00019999,2]
[407739303,1772727038014,-369.35357836,0.00019999,2]
[407739304,1772727038023,-500.0,0.00019999,2]
[407739305,1772727038034,-500.0,0.00019999,2]
[407739306,1772727038044,-500.0,0.00019999,2]
[407739307,1772727038053,-500.0,0.00019999,2]
[407739308,1772727038063,-500.0,0.00019999,2]
[407739309,1772727038072,-500.0,0.00019999,2]
[407739310,1772727038081,-500.0,0.00019999,2]
[407739311,1772727038091,-500.0,0.00019999,2]
[407739312,1772727038102,-500.0,0.00019999,2]
[407739313,1772727038112,-500.0,0.00019999,2]
[407739314,1772727038121,-500.0,0.00019999,2]
[407739315,1772727038131,-205.77705378,0.00019999,2]
[407739316,1772727038140,-500.0,0.00019999,2]
[407739317,1772727038150,-500.0,0.00019999,2]
[407739318,1772727038159,-500.0,0.00019999,2]
[407739319,1772727038169,-500.0,0.00019999,2]
[407739320,1772727038179,-500.0,0.00019999,2]
[407739321,1772727038189,-500.0,0.00019999,2]
[407739322,1772727038199,-500.0,0.00019999,2]
[407739323,1772727038208,-500.0,0.00019999,2]
[407739324,1772727038218,-500.0,0.00019999,2]
[407739325,1772727038227,-500.0,0.00019999,2]
[407739326,1772727038236,-500.0,0.00019999,2]
[407739327,1772727038245,-500.0,0.00019999,2]
[407739328,1772727038254,-500.0,0.00019999,2]
[407739329,1772727038264,-500.0,0.00019999,2]
[407739330,1772727038275,-500.0,0.00019999,2]
[407739332,1772727038284,-507091.96745502,0.0002,2]
[407739334,1772727038296,-3021.07494711,0.0002,2]
[407739336,1772727038307,-8162.43217254,0.0002,2]
[407739337,1772727038319,-5805.95134873,0.0002,2]
[407739338,1772727038330,-4094.1401288,0.0002,2]
[407739339,1772727038341,-423.64026509,0.0002,2]
[407739340,1772727038353,-1586.69171835,0.0002,2]
[407739341,1772727038365,-903.93718342,0.0002,2]
[407739342,1772727038376,-70999.99999992,0.0002,2]
[407739343,1772727038388,-35080.45007758,0.0002,2]
[407739349,1772727040021,-912.1691328,0.0002,2]
[407739350,1772727040032,-850.0,0.0002,2]
[407739351,1772727040043,-1926.80999996,0.0002,2]
[407739352,1772727040068,-1902.07,0.0002,2]
[407739353,1772727040080,-3899.5,0.0002,2]
[407739354,1772727040323,-739.53767903,0.0002,2]
[407739355,1772727040334,-6633.13592568,0.0002,2]
[407739356,1772727040580,-2614.76381221,0.0002,2]
[407739357,1772727040591,-892.18335078,0.0002,2]
[407739369,1772727043122,-599.99908632,0.0002,2]
[407739370,1772727043134,-8923.99027758,0.0002,2]
[407739371,1772727043263,-3589.59741684,0.0002,2]
[407739389,1772727045772,-71659.99999995,0.0002,2]
[407739391,1772727045783,-104375.0000005,0.0002,2]
[407739396,1772727045824,-872.25527299,0.0002,2]
[407739397,1772727045835,-35461.71798858,0.0002,2]
[407739398,1772727046081,-350.0,0.0002,2]
[407739402,1772727062937,249.7295,0.00014,2]
[407739403,1772727088683,504.0,0.00014,2]
[407739406,1772727150208,504.0,0.00014,2]
[407739408,1772727155626,160.2,0.00010737,2]
[407739409,1772727155869,160.2,0.00012079,2]
[407739410,1772727156112,160.2,0.00013421,2]
[407739411,1772727156323,160.2,0.00014763,2]
[407739412,1772727156524,160.2,0.00016105,2]
[407739413,1772727194644,20700.0,0.000162,2]
[407739446,1772728019296,5385.42110056,0.00014,60]
[407739449,1772728043144,2534.7,0.00016291,2]
[407739454,1772728128473,-500.0,0.000165,3]
[407739455,1772728128497,-3500.0,0.000165,5]
[407739586,1772728232000,-1515.48851314,0.000165,5]
[407739588,1772728232009,-291.0,0.0001679,2]
[407739591,1772728232019,-158.32,0.0001679,2]
[407739594,1772728232028,-166.66,0.00016831,2]
[407739596,1772728232037,-367.906502,0.00016977,7]
[407739600,1772728232047,-1200.0,0.00016998,2]
[407739602,1772728232056,-300.0,0.00016999,2]
[407739604,1772728232065,-1200.0,0.00016999,2]
[407739606,1772728232077,-300.0,0.00016999,2]
[407739607,1772728232087,-1500.0,0.00017,2]
[407739608,1772728232097,-1500.0,0.00017,2]
[407739610,1772728232106,-2098.457839,0.00017,2]
[407739611,1772728232118,-158.32,0.0001706,2]
[407739612,1772728232127,-166.66,0.00017185,2]
[407739614,1772728232137,-158.32,0.0001733,2]
[407739615,1772728232146,-160.2,0.00017448,2]
[407739616,1772728232158,-166.66,0.0001754,2]
[407739618,1772728232167,-158.32,0.000176,2]
[407739619,1772728232176,-543.66975075,0.00017685,2]
[407739620,1772728232190,-155.05,0.00017745,2]
[407739622,1772728232200,-623.46432771,0.00017808,2]
[407739623,1772728232209,-150.0,0.00017844,2]
[407739625,1772728232219,-158.32,0.0001787,2]
[407739626,1772728232229,-166.66,0.00017894,2]
[407739627,1772728232239,-593.0,0.00017905,2]
[407739628,1772728232249,-558.88,0.0001796,2]
[407739630,1772728232258,-175.93063674,0.00018015,2]
[407739631,1772728232268,-1644.0,0.00018027,2]
[407739632,1772728232277,-412.0,0.00018063,2]
[407739634,1772728232287,-158.32,0.0001814,2]
[407739635,1772728232296,-500.0,0.0001815,2]
[407739636,1772728232306,-2351.47976923,0.0001815,2]
[407739638,1772728232319,-166.66,0.00018248,2]
[407739639,1772728232329,-6240.36,0.00018346,2]
[407739641,1772728232339,-158.32,0.0001841,2]
[407739642,1772728232348,-216.06078434,0.00018495,2]
[407739643,1772728232358,-200.0,0.00018515,2]
[407739644,1772728232369,-500.0,0.00018531,2]
[407739646,1772728232380,-420.0,0.00018567,2]
[407739647,1772728232390,-420.0,0.00018567,2]
[407739649,1772728232399,-166.66,0.00018603,2]
[407739650,1772728232409,-166.66,0.0001864,2]
[407739651,1772728232418,-1680.0,0.00018659,2]
[407739653,1772728232429,-158.32,0.0001868,2]
[407739654,1772728232438,-160.2,0.0001879,2]
[407739655,1772728232448,-158.32,0.0001895,2]
[407739657,1772728232458,-158.32,0.0001922,2]
[407739658,1772728232468,-660.0,0.00019221,2]
[407739659,1772728232477,-166.66,0.00019255,2]
[407739661,1772728232487,-158.32,0.0001949,2]
[407739662,1772728232496,-158.32,0.0001976,2]
[407739663,1772728232506,-16035.67269634,0.00019799,2]
[407739687,1772728233182,-67459.84230366,0.00019799,2]
[407739688,1772728233192,-152.987922,0.000198,3]
[407739689,1772728233201,-166.66,0.00019871,2]
[407739690,1772728233211,-67780.3436,0.00019899,2]
[407739691,1772728233220,-500.0,0.00019899,2]
[407739692,1772728233230,-1000.0,0.000199,2]
[407739693,1772728233239,-1590.29246759,0.000199,2]
[407739694,1772728233248,-1038.97505896,0.000199,2]
[407739695,1772728233259,-1939.41131902,0.000199,2]
[407739696,1772728233268,-32898.3261,0.000199,2]
[407739697,1772728233277,-9872.31893976,0.000199,2]
[407739698,1772728233285,-500.0,0.00019999,2]
[407739699,1772728233294,-500.0,0.00019999,2]
[407739700,1772728233303,-500.0,0.00019999,2]
[407739701,1772728233312,-500.0,0.00019999,2]
[407739702,1772728233321,-500.0,0.00019999,2]
[407739703,1772728233331,-500.0,0.00019999,2]
[407739705,1772728233340,-500.0,0.00019999,2]
[407739706,1772728233349,-500.0,0.00019999,2]
[407739707,1772728233359,-500.0,0.00019999,2]
[407739709,1772728233367,-370.56184787,0.00019999,2]
[407739710,1772728233377,-500.0,0.00019999,2]
[407739711,1772728233387,-500.0,0.00019999,2]
[407739713,1772728233396,-500.0,0.00019999,2]
[407739714,1772728233405,-500.0,0.00019999,2]
[407739715,1772728233415,-500.0,0.00019999,2]
[407739717,1772728233424,-15.30450562,0.00019999,2]
[407739718,1772728233435,-484.69549438,0.00019999,2]
[407739719,1772728233445,-500.00000001,0.00019999,2]
[407739721,1772728233454,-500.0,0.00019999,2]
[407739722,1772728233465,-500.0,0.00019999,2]
[407739724,1772728233477,-500.0,0.00019999,2]
[407739725,1772728233486,-500.0,0.00019999,2]
[407739726,1772728233499,-500.0,0.00019999,2]
[407739728,1772728233509,-500.0,0.00019999,2]
[407739729,1772728233518,-57.83540293,0.00019999,2]
[407739731,1772728233529,-442.16459707,0.00019999,2]
[407739732,1772728233539,-515.50068087,0.00019999,2]
[407739733,1772728233549,-500.0,0.00019999,2]
[407739735,1772728233559,-500.0,0.00019999,2]
[407739736,1772728233569,-500.0,0.00019999,2]
[407739738,1772728233578,-500.0,0.00019999,2]
[407739739,1772728233588,-500.0,0.00019999,2]
[407739740,1772728233597,-500.0,0.00019999,2]
[407739742,1772728233607,-500.0,0.00019999,2]
[407739743,1772728233616,-500.0,0.00019999,2]
[407739744,1772728233626,-500.0,0.00019999,2]
[407739746,1772728233635,-143812.41532433,0.0002,2]
[407739747,1772728233647,-353.5,0.0002,2]
[407739749,1772728233678,-0.03506479,0.0002,2]
[407739751,1772728233700,-14736.99077596,0.0002,2]
[407739753,1772728233710,-32991.7447426,0.0002,2]
[407739754,1772728233719,-10240.29826562,0.0002,2]
[407739755,1772728233730,-489.02572895,0.0002,2]
[407739757,1772728233741,-9042.15257602,0.0002,2]
[407739759,1772728233772,-18522.16202032,0.0002,2]
[407739760,1772728233784,-4739.45716681,0.0002,2]
[407739898,1772728238030,-1909.34292042,0.0002,2]
[407739901,1772728238082,-609.89116208,0.0002,2]
[407739902,1772728238093,-4671.0,0.0002,2]
[407739904,1772728238130,-6086.69999999,0.0002,2]
[407739905,1772728238178,-997.91895596,0.0002,2]
[407739909,1772728238337,-27406.37218782,0.0002,2]
[407739942,1772728240322,-3905.0,0.00018246,2]
[407739943,1772728240334,-683.7324218,0.00018246,2]
[407739950,1772728240726,-3175.74688358,0.00018246,2]
[407739951,1772728240737,-1023.24592403,0.00018246,2]
[407739952,1772728240748,-410.5488391,0.00018246,2]
[407739992,1772728243158,-303.81518612,0.00018246,2]
[407739993,1772728243169,-35499.99999999,0.00018246,2]
[407740004,1772728243820,-937.70955075,0.00018246,2]
[407740038,1772728245914,-41758.94812058,0.00018246,2]
[407740044,1772728245948,-35533.06113812,0.00018246,2]
[407740046,1772728245983,-421.9602,0.00018246,2]
[407740048,1772728245994,-69350.85923593,0.00018246,2]
[407740049,1772728246004,-28557.17524351,0.0002,2]
[407740050,1772728246013,-39104.2653399,0.0002,2]
[407740051,1772728246022,-150.0,0.0002,20]
[407740052,1772728246033,-158.32,0.0002003,2]
[407740053,1772728246043,-160.2,0.00020132,2]
[407740055,1772728246052,-166.0,0.00020279,2]
[407740056,1772728246062,-158.44,0.000203,2]
[407740057,1772728246072,-207.84,0.0002038,2]
[407740058,1772728246085,-3240.0,0.00020476,2]
[407740059,1772728246094,-2351.0,0.00020481,2]
[407740060,1772728246104,-166.66,0.00020486,2]
[407740062,1772728246114,-202.6,0.00020706,2]
[407740063,1772728246123,-166.66,0.00021101,2]
[407740064,1772728246133,-500.0,0.00021332,2]
[407740065,1772728246143,-160.2,0.00021474,2]
[407740066,1772728246153,-3235.90338308,0.00021477,2]
[407740067,1772728246164,-166.66,0.00021717,2]
[407740068,1772728246173,-150.0,0.00021918,2]
[407740070,1772728246182,-2769.23,0.00022,30]
[407740071,1772728246191,-3733.564,0.00022385,2]
[407740072,1772728246200,-547.034,0.00022385,2]
[407740073,1772728246209,-2820.0,0.00022481,2]
[407740074,1772728246218,-7361.453288,0.00022534,2]
[407740075,1772728246227,-25274.2870934,0.00022534,2]
[407740077,1772728246236,-982.778705,0.00022534,2]
[407740078,1772728246245,-8725.3409877,0.00022617,2]
[407740079,1772728246254,-176.6814291,0.00022693,2]
[407740080,1772728246264,-2978.38637798,0.00022853,2]
[407740081,1772728246273,-9872.31893968,0.00022853,2]
[407740082,1772728246282,-150.0,0.00023014,2]
[407740083,1772728246291,-172.70211477,0.00023059,2]
[407740085,1772728246300,-160.0,0.00023059,2]
[407740086,1772728246309,-1642.562251,0.00023099,2]
[407740087,1772728246319,-5639.4557268,0.00023099,2]
[407740088,1772728246328,-1252.44,0.00023115,2]
[407740089,1772728246338,-6239.57,0.00023115,2]
[407740090,1772728246348,-8734.84,0.00023165,2]
[407740091,1772728246357,-1946.8867319,0.00023201,2]
[407740093,1772728246367,-202.6,0.0002336,2]
[407740094,1772728246378,-1590.29246756,0.00023696,2]
[407740095,1772728246388,-500.0,0.00024133,2]
[407740096,1772728246397,-160.0,0.00024136,2]
[407740097,1772728246407,-150.0,0.00024548,2]
[407740098,1772728246417,-1000.0,0.00024658,2]
[407740099,1772728246427,-150.0,0.00024658,2]
[407740101,1772728246437,-150.0,0.00024963,2]
[407740102,1772728246447,-150.0,0.00025,17]
[407740103,1772728246457,-150.0,0.000257,14]
[407740104,1772728246467,-2978.38637798,0.00025806,2]
[407740105,1772728246476,-9872.31893968,0.00025806,2]
[407740106,1772728246486,-150.0,0.0002589,2]
[407740107,1772728246495,-202.6,0.00026014,2]
[407740109,1772728246504,-471.43,0.00026143,30]
[407740110,1772728246514,-1000.0,0.00026287,2]
[407740111,1772728246524,-152.98792199,0.000263,8]
[407740112,1772728246533,-500.0,0.00026493,2]
[407740113,1772728246543,-155.05,0.00026618,2]
[407740114,1772728246553,-500.0,0.00026933,2]
[407740116,1772728246563,-150.0,0.00027185,2]
[407740117,1772728246573,-12100.51,0.00027397,10]
[407740118,1772728246583,-1984.91144616,0.0002744,2]
[407740119,1772728246593,-292.63,0.0002745,2]
[407740120,1772728246603,-161.59,0.0002745,2]
[407740121,1772728246612,-268.58,0.0002745,2]
[407740122,1772728246621,-4358.69,0.0002745,2]
[407740124,1772728246638,-1590.29246756,0.00027493,2]
[407740125,1772728246648,-268.58,0.00028136,2]
[407740126,1772728246657,-150.0,0.00028544,2]
[407740127,1772728246668,-202.6,0.00028668,2]
[407740128,1772728246677,-2978.38637798,0.00028758,2]
[407740129,1772728246686,-9872.31893968,0.00028758,2]
[407740131,1772728246695,-268.58,0.00028822,2]
[407740132,1772728246705,-2469.0,0.00028845,5]
[407740133,1772728246715,-161.59,0.0002928,2]
[407740134,1772728246724,-268.58,0.00029509,2]
[407740135,1772728246733,-1984.91144616,0.00029563,2]
[407740136,1772728246742,-538.31254321,0.00029573,5]
[407740137,1772728246751,-500.0,0.00029573,5]
[407740139,1772728246760,-500.0,0.00029573,2]
[407740140,1772728246769,-500.0,0.00029573,5]
[407740141,1772728246778,-500.0,0.00029573,3]
[407740142,1772728246787,-500.0,0.00029573,5]
[407740143,1772728246797,-500.0,0.00029573,5]
[407740144,1772728246806,-500.0,0.00029573,5]
[407740145,1772728246815,-500.0,0.00029573,5]
[407740147,1772728246824,-1000.0,0.00029573,2]
[407740148,1772728246833,-500.0,0.00029734,2]
[407740149,1772728246842,-180.58,0.00029822,14]
[407740150,1772728246851,-295.08,0.0003,14]
[407740151,1772728246860,-160.0,0.00030101,10]
[407740152,1772728246869,-1000.0,0.00030121,5]
[407740154,1772728246881,-1001.74200983,0.00030121,2]
[407740155,1772728246891,-1001.87803648,0.00030121,5]
[407740156,1772728246900,-226.88022743,0.00030121,3]
[407740157,1772728246909,-1000.0,0.00030121,5]
[407740158,1772728246918,-1000.0,0.00030121,5]
[407740159,1772728246928,-1000.0,0.00030121,5]
[407740160,1772728246937,-1000.0,0.00030121,5]
[407740162,1772728246946,-5761.09005843,0.00030137,2]
[407740226,1772728251374,-1210.08350013,0.00030137,2]
[407740336,1772728260141,250.0,0.00015,2]
[407740752,1772728288317,504.0,0.00014,2]
[407740870,1772728296119,151.0,0.00014634,2]
[407741101,1772728315043,504.0,0.00014,2]
[407742203,1772728471663,505.0,0.00014,2]
[407742205,1772728574401,158.23,0.00015704,2]
[407742206,1772728574880,158.23,0.00015704,2]
[407742207,1772728575469,74.24097036,0.00015704,2]
[407742208,1772728575498,83.98902964,0.00015704,2]
[407742209,1772728575913,158.23,0.00015704,2]
[407742210,1772728576399,158.23,0.00015704,2]
[407742211,1772728576812,158.2,0.00015704,2]
[407742214,1772728656699,1509.96,0.00015566,2]
[407742219,1772728823831,505.0,0.00014,2]
[407742231,1772729432088,-196.30944379,0.00016565,2]
[407742232,1772729432099,-289.0,0.00016565,2]
[407742233,1772729432108,-250.0,0.00016609,2]
[407742234,1772729432118,-1200.0,0.00016664,2]
[407742235,1772729432127,-833.65559811,0.00016675,2]
[407742236,1772729432136,-300.0,0.00016687,2]
[407742237,1772729432146,-300.0,0.00016687,2]
[407742238,1772729432155,-190.484,0.0001669,2]
[407742239,1772729432164,-166.63,0.00016712,2]
[407742240,1772729432174,-161.18,0.0001679,2]
[407742241,1772729432184,-161.18,0.0001706,2]
[407742242,1772729432193,-161.18,0.0001733,2]
[407742243,1772729432203,-161.18,0.000176,2]
[407742244,1772729432213,-500.0,0.00017622,2]
[407742245,1772729432223,-4000.0,0.00017716,2]
[407742246,1772729432232,-294.19,0.00017784,2]
[407742247,1772729432247,-1403.89,0.00017831,2]
[407742248,1772729432257,-500.0,0.00017833,2]
[407742249,1772729432266,-161.18,0.0001787,2]
[407742250,1772729432276,-171.83526513,0.000179,2]
[407742251,1772729432286,-171.83526512,0.000179,2]
[407742252,1772729432296,-171.83526512,0.000179,2]
[407742253,1772729432306,-2312.18,0.00017949,2]
[407742254,1772729432316,-161.18,0.0001814,2]
[407742255,1772729432325,-4000.0,0.00018159,2]
[407742256,1772729432335,-250.0,0.00018222,2]
[407742257,1772729432347,-500.0,0.00018222,2]
[407742259,1772729432356,-300.0,0.00018231,2]
[407742260,1772729432366,-2236.94,0.00018281,2]
[407742261,1772729432375,-1680.0,0.00018298,2]
[407742263,1772729432385,-660.0,0.00018303,2]
[407742265,1772729432397,-500.0,0.00018304,2]
[407742267,1772729432411,-193.46326284,0.00018304,2]
[407742269,1772729432420,-2500.0,0.00018304,2]
[407742271,1772729432429,-243.55922517,0.00018304,2]
[407742273,1772729432440,-5000.0,0.00018304,2]